[Event "Titled Tuesday Blitz November 14 Late 2023"]
[White "DAVIDHDZSTS"]
[Black "Weimarraner"]
[WhiteElo "1849"]
[BlackElo "2516"]
[Result "0-1"]
[Round "1"]
[TimeControl "180+1"]
[Date "2023.11.14"]
[WhiteClock "0:00:03"]
[BlackClock "0:01:10"]
[Board "183"]

1. d4 {[%clk 0:02:59]}  Nf6 {[%clk 0:03:00]} 2. Nc3 {[%clk 0:02:58]}  d5 {[%clk 0:03:00]} 3. Bf4 {[%clk 0:02:58]}  a6 {[%clk 0:02:58]} 4. e3 {[%clk 0:02:56]}  e6 {[%clk 0:02:58]} 5. a3 {[%clk 0:02:39]}  c5 {[%clk 0:02:58]} 6. Nf3 {[%clk 0:02:38]}  Nc6 {[%clk 0:02:59]} 7. Be2 {[%clk 0:02:36]}  h6 {[%clk 0:02:59]} 8. h3 {[%clk 0:02:36]}  b5 {[%clk 0:02:57]} 9. dxc5 {[%clk 0:02:35]}  Bxc5 {[%clk 0:02:57]} 10. O-O {[%clk 0:02:35]}  Bb7 {[%clk 0:02:56]} 11. Nd4 {[%clk 0:02:24]}  O-O {[%clk 0:02:52]} 12. Nxc6 {[%clk 0:02:22]}  Bxc6 {[%clk 0:02:53]} 13. Be5 {[%clk 0:02:22]}  Nd7 {[%clk 0:02:46]} 14. Bd4 {[%clk 0:02:20]}  Be7 {[%clk 0:02:42]} 15. f4 {[%clk 0:02:02]}  Qc7 {[%clk 0:02:33]} 16. Na2 {[%clk 0:01:53]}  a5 {[%clk 0:02:31]} 17. b3 {[%clk 0:01:51]}  Bxa3 {[%clk 0:02:27]} 18. Nc3 {[%clk 0:01:48]}  Bb2 {[%clk 0:02:17]} 19. Nxb5 {[%clk 0:01:43]}  Bxb5 {[%clk 0:02:16]} 20. Bxb2 {[%clk 0:01:43]}  Bxe2 {[%clk 0:02:08]} 21. Qxe2 {[%clk 0:01:44]}  Rfc8 {[%clk 0:02:09]} 22. Rfc1 {[%clk 0:01:42]}  Nc5 {[%clk 0:02:09]} 23. Qd2 {[%clk 0:01:30]}  Ne4 {[%clk 0:02:03]} 24. Qd4 {[%clk 0:01:28]}  Nc3 {[%clk 0:02:03]} 25. Kf2 {[%clk 0:01:20]}  f6 {[%clk 0:01:54]} 26. Ke1 {[%clk 0:00:59]}  Ne4 {[%clk 0:01:52]} 27. c4 {[%clk 0:00:53]}  Qb7 {[%clk 0:01:49]} 28. cxd5 {[%clk 0:00:43]}  exd5 {[%clk 0:01:50]} 29. Rxc8+ {[%clk 0:00:41]}  Rxc8 {[%clk 0:01:49]} 30. Rxa5 {[%clk 0:00:37]}  Qxb3 {[%clk 0:01:46]} 31. Ra3 {[%clk 0:00:17]}  Qc2 {[%clk 0:01:40]} 32. Qxd5+ {[%clk 0:00:14]}  Kh8 {[%clk 0:01:40]} 33. Bxf6 {[%clk 0:00:06]}  Qb1+ {[%clk 0:01:24]} 34. Ke2 {[%clk 0:00:06]}  Nxf6 {[%clk 0:01:20]} 35. Qe6 {[%clk 0:00:05]}  Rc2+ {[%clk 0:01:16]} 36. Kf3 {[%clk 0:00:05]}  Qf1+ {[%clk 0:01:13]} 37. Kg3 {[%clk 0:00:04]}  Qxg2+ {[%clk 0:01:10]} 38. Kh4 {[%clk 0:00:04]}  g5+ {[%clk 0:01:09]} 39. fxg5 {[%clk 0:00:03]}  hxg5# {[%clk 0:01:10]} 0-1


[Site "https://www.chess.com"]

[Event "Titled Tuesday Blitz November 14 Late 2023"]
[White "Richter, Paul"]
[Black "Lutz, Igor Oscar"]
[WhiteFideId "2046350"]
[BlackFideId "2110806"]
[WhiteElo "2515"]
[BlackElo "1835"]
[Result "1-0"]
[Round "1"]
[TimeControl "180+1"]
[Date "2023.11.14"]
[WhiteClock "0:01:43"]
[BlackClock "0:00:06"]
[Board "184"]

1. e4 {[%clk 0:02:59]}  c5 {[%clk 0:03:00]} 2. Nf3 {[%clk 0:02:58]}  Nc6 {[%clk 0:03:00]} 3. d4 {[%clk 0:02:57]}  cxd4 {[%clk 0:03:01]} 4. Nxd4 {[%clk 0:02:57]}  Nf6 {[%clk 0:03:01]} 5. Nc3 {[%clk 0:02:58]}  d6 {[%clk 0:02:59]} 6. Bg5 {[%clk 0:02:57]}  e6 {[%clk 0:02:58]} 7. Qd2 {[%clk 0:02:56]}  Be7 {[%clk 0:02:57]} 8. O-O-O {[%clk 0:02:56]}  O-O {[%clk 0:02:57]} 9. f4 {[%clk 0:02:55]}  Nxd4 {[%clk 0:02:57]} 10. Qxd4 {[%clk 0:02:56]}  Qa5 {[%clk 0:02:47]} 11. Bd3 {[%clk 0:02:53]}  Bd7 {[%clk 0:02:44]} 12. h4 {[%clk 0:02:49]}  e5 {[%clk 0:01:52]} 13. Qf2 {[%clk 0:02:41]}  Bc6 {[%clk 0:01:46]} 14. g4 {[%clk 0:02:22]}  b5 {[%clk 0:01:29]} 15. Bxf6 {[%clk 0:01:58]}  Bxf6 {[%clk 0:01:27]} 16. g5 {[%clk 0:01:58]}  Be7 {[%clk 0:01:23]} 17. Kb1 {[%clk 0:01:58]}  b4 {[%clk 0:01:22]} 18. Nd5 {[%clk 0:01:58]}  Bxd5 {[%clk 0:01:22]} 19. exd5 {[%clk 0:01:59]}  b3 {[%clk 0:00:47]} 20. axb3 {[%clk 0:01:56]}  exf4 {[%clk 0:00:34]} 21. Qxf4 {[%clk 0:01:51]}  Rfc8 {[%clk 0:00:22]} 22. Qe4 {[%clk 0:01:48]}  g6 {[%clk 0:00:11]} 23. Qxe7 {[%clk 0:01:47]}  Qxd5 {[%clk 0:00:11]} 24. Bc4 {[%clk 0:01:44]}  Qf5 {[%clk 0:00:06]} 25. Rhf1 {[%clk 0:01:43]} 1-0


[Site "https://www.chess.com"]

[Event "Titled Tuesday Blitz November 14 Late 2023"]
[White "Erenberg, Ariel"]
[Black "Andreikin, Dmitry"]
[WhiteFideId "2811634"]
[BlackFideId "4158814"]
[WhiteElo "2630"]
[BlackElo "3130"]
[Result "0-1"]
[Round "2"]
[TimeControl "180+1"]
[Date "2023.11.14"]
[WhiteClock "0:00:00"]
[BlackClock "0:00:54"]
[Board "2"]

1. Nf3 {[%clk 0:02:55]}  Nf6 {[%clk 0:02:58]} 2. d4 {[%clk 0:02:54]}  e6 {[%clk 0:02:58]} 3. Bf4 {[%clk 0:02:52]}  b6 {[%clk 0:02:58]} 4. c3 {[%clk 0:02:48]}  Bb7 {[%clk 0:02:58]} 5. e3 {[%clk 0:02:46]}  Nh5 {[%clk 0:02:58]} 6. Bg5 {[%clk 0:02:43]}  Be7 {[%clk 0:02:58]} 7. Bxe7 {[%clk 0:02:41]}  Qxe7 {[%clk 0:02:59]} 8. Nbd2 {[%clk 0:02:42]}  d6 {[%clk 0:02:58]} 9. Bd3 {[%clk 0:02:41]}  Nd7 {[%clk 0:02:57]} 10. a4 {[%clk 0:02:38]}  O-O {[%clk 0:02:57]} 11. a5 {[%clk 0:02:37]}  e5 {[%clk 0:02:57]} 12. Nxe5 {[%clk 0:02:08]}  Nxe5 {[%clk 0:02:51]} 13. Bxh7+ {[%clk 0:02:07]}  Kxh7 {[%clk 0:02:50]} 14. Qxh5+ {[%clk 0:02:07]}  Kg8 {[%clk 0:02:51]} 15. dxe5 {[%clk 0:02:07]}  dxe5 {[%clk 0:02:49]} 16. O-O {[%clk 0:02:04]}  Rad8 {[%clk 0:02:48]} 17. Nf3 {[%clk 0:01:56]}  f6 {[%clk 0:02:47]} 18. Nh4 {[%clk 0:01:47]}  Qe6 {[%clk 0:02:41]} 19. axb6 {[%clk 0:01:38]}  axb6 {[%clk 0:02:40]} 20. Ng6 {[%clk 0:01:29]}  Rfe8 {[%clk 0:02:38]} 21. Ra7 {[%clk 0:01:27]}  Qc6 {[%clk 0:02:36]} 22. f3 {[%clk 0:01:17]}  Rd2 {[%clk 0:02:29]} 23. b4 {[%clk 0:00:45]}  b5 {[%clk 0:01:49]} 24. Nh4 {[%clk 0:00:45]}  Red8 {[%clk 0:01:39]} 25. Nf5 {[%clk 0:00:26]}  Qb6 {[%clk 0:01:38]} 26. Qg6 {[%clk 0:00:21]}  R2d7 {[%clk 0:01:35]} 27. Rfa1 {[%clk 0:00:19]}  c5 {[%clk 0:01:28]} 28. h4 {[%clk 0:00:18]}  cxb4 {[%clk 0:01:26]} 29. cxb4 {[%clk 0:00:17]}  Bc8 {[%clk 0:01:17]} 30. Kh2 {[%clk 0:00:16]}  Rxa7 {[%clk 0:01:16]} 31. Rxa7 {[%clk 0:00:09]}  Qxa7 {[%clk 0:01:17]} 32. Nh6+ {[%clk 0:00:08]}  Kf8 {[%clk 0:01:17]} 33. Qh7 {[%clk 0:00:09]}  Qd7 {[%clk 0:00:59]} 34. Qg8+ {[%clk 0:00:05]}  Ke7 {[%clk 0:00:59]} 35. Qxg7+ {[%clk 0:00:05]}  Ke6 {[%clk 0:00:57]} 36. Qg4+ {[%clk 0:00:03]}  Kd6 {[%clk 0:00:58]} 37. Qe4 {[%clk 0:00:02]}  Kc7 {[%clk 0:00:56]} 38. h5 {[%clk 0:00:00]}  Qg7 {[%clk 0:00:54]} 0-1


[Site "https://www.chess.com"]

[Event "Titled Tuesday Blitz November 14 Late 2023"]
[White "Tabatabaei, M. Amin"]
[Black "Sakun, Volodymyr"]
[WhiteFideId "12521213"]
[BlackFideId "14114062"]
[WhiteElo "3090"]
[BlackElo "2621"]
[Result "1-0"]
[Round "2"]
[TimeControl "180+1"]
[Date "2023.11.14"]
[WhiteClock "0:00:16"]
[BlackClock "0:00:00"]
[Board "5"]

1. e4 {[%clk 0:02:52]}  c6 {[%clk 0:02:59]} 2. d4 {[%clk 0:02:51]}  d5 {[%clk 0:02:59]} 3. exd5 {[%clk 0:02:52]}  cxd5 {[%clk 0:02:57]} 4. Nf3 {[%clk 0:02:50]}  Nc6 {[%clk 0:02:52]} 5. Bb5 {[%clk 0:02:50]}  Qa5+ {[%clk 0:02:50]} 6. Nc3 {[%clk 0:02:50]}  Bg4 {[%clk 0:02:48]} 7. h3 {[%clk 0:02:50]}  Bxf3 {[%clk 0:02:48]} 8. Qxf3 {[%clk 0:02:51]}  e6 {[%clk 0:02:48]} 9. O-O {[%clk 0:02:51]}  Nf6 {[%clk 0:02:47]} 10. Be3 {[%clk 0:02:48]}  Be7 {[%clk 0:02:45]} 11. a3 {[%clk 0:02:48]}  O-O {[%clk 0:02:43]} 12. Bd3 {[%clk 0:02:44]}  Rac8 {[%clk 0:02:13]} 13. Rfd1 {[%clk 0:02:36]}  a6 {[%clk 0:02:05]} 14. g4 {[%clk 0:02:32]}  Qc7 {[%clk 0:01:49]} 15. g5 {[%clk 0:02:28]}  Nd7 {[%clk 0:01:48]} 16. h4 {[%clk 0:02:27]}  Na5 {[%clk 0:01:26]} 17. Ne2 {[%clk 0:02:12]}  Nc4 {[%clk 0:01:24]} 18. Bxc4 {[%clk 0:01:59]}  dxc4 {[%clk 0:01:19]} 19. Nf4 {[%clk 0:01:48]}  Nb6 {[%clk 0:01:13]} 20. d5 {[%clk 0:01:40]}  Nxd5 {[%clk 0:01:10]} 21. Nxd5 {[%clk 0:01:37]}  exd5 {[%clk 0:01:11]} 22. Rxd5 {[%clk 0:01:36]}  Rcd8 {[%clk 0:01:06]} 23. Rad1 {[%clk 0:01:36]}  Rxd5 {[%clk 0:01:05]} 24. Rxd5 {[%clk 0:01:36]}  Rd8 {[%clk 0:00:45]} 25. h5 {[%clk 0:01:27]}  Rxd5 {[%clk 0:00:40]} 26. Qxd5 {[%clk 0:01:28]}  Qc6 {[%clk 0:00:38]} 27. Qxc6 {[%clk 0:01:27]}  bxc6 {[%clk 0:00:39]} 28. Kg2 {[%clk 0:01:27]}  f5 {[%clk 0:00:33]} 29. g6 {[%clk 0:01:22]}  hxg6 {[%clk 0:00:30]} 30. hxg6 {[%clk 0:01:23]}  Bf6 {[%clk 0:00:30]} 31. b3 {[%clk 0:01:23]}  cxb3 {[%clk 0:00:29]} 32. cxb3 {[%clk 0:01:24]}  Kf8 {[%clk 0:00:29]} 33. Bc5+ {[%clk 0:01:15]}  Ke8 {[%clk 0:00:29]} 34. Kf3 {[%clk 0:01:09]}  Kd7 {[%clk 0:00:28]} 35. Ke3 {[%clk 0:01:09]}  Ke6 {[%clk 0:00:27]} 36. Bd4 {[%clk 0:01:08]}  Bg5+ {[%clk 0:00:26]} 37. Kd3 {[%clk 0:01:03]}  Bf6 {[%clk 0:00:16]} 38. b4 {[%clk 0:00:57]}  f4 {[%clk 0:00:06]} 39. Bxf6 {[%clk 0:00:20]}  Kxf6 {[%clk 0:00:06]} 40. Ke4 {[%clk 0:00:21]}  Kg5 {[%clk 0:00:05]} 41. a4 {[%clk 0:00:15]}  f3 {[%clk 0:00:02]} 42. Kxf3 {[%clk 0:00:15]}  Kxg6 {[%clk 0:00:03]} 43. Ke4 {[%clk 0:00:15]}  Kf6 {[%clk 0:00:03]} 44. Kd4 {[%clk 0:00:16]}  Ke6 {[%clk 0:00:04]} 45. Kc5 {[%clk 0:00:16]}  Kd7 {[%clk 0:00:00]} 46. Kb6 {[%clk 0:00:16]} 1-0


[Site "https://www.chess.com"]

[Event "Titled Tuesday Blitz November 14 Late 2023"]
[White "Wadsworth, Matthew J"]
[Black "Yoo, Christopher Woojin"]
[WhiteFideId "415804"]
[BlackFideId "30909694"]
[WhiteElo "2620"]
[BlackElo "3069"]
[Result "0-1"]
[Round "2"]
[TimeControl "180+1"]
[Date "2023.11.14"]
[WhiteClock "0:00:41"]
[BlackClock "0:00:57"]
[Board "6"]

1. Nf3 {[%clk 0:03:00]}  Nf6 {[%clk 0:02:59]} 2. g3 {[%clk 0:03:00]}  d6 {[%clk 0:02:59]} 3. Bg2 {[%clk 0:03:01]}  e5 {[%clk 0:02:58]} 4. O-O {[%clk 0:02:58]}  Nbd7 {[%clk 0:02:59]} 5. c4 {[%clk 0:02:59]}  Be7 {[%clk 0:02:57]} 6. Nc3 {[%clk 0:02:59]}  O-O {[%clk 0:02:56]} 7. d4 {[%clk 0:03:00]}  c6 {[%clk 0:02:52]} 8. e4 {[%clk 0:02:55]}  a5 {[%clk 0:02:51]} 9. Re1 {[%clk 0:02:49]}  Re8 {[%clk 0:02:49]} 10. h3 {[%clk 0:02:48]}  Rb8 {[%clk 0:02:33]} 11. d5 {[%clk 0:02:40]}  Nc5 {[%clk 0:02:30]} 12. Bf1 {[%clk 0:02:13]}  Bd7 {[%clk 0:02:25]} 13. a3 {[%clk 0:02:09]}  a4 {[%clk 0:02:22]} 14. Bg5 {[%clk 0:01:47]}  Qa5 {[%clk 0:01:50]} 15. Nd2 {[%clk 0:01:44]}  Nxd5 {[%clk 0:01:37]} 16. cxd5 {[%clk 0:01:39]}  Bxg5 {[%clk 0:01:36]} 17. Nc4 {[%clk 0:01:39]}  Qc7 {[%clk 0:01:35]} 18. dxc6 {[%clk 0:01:38]}  bxc6 {[%clk 0:01:22]} 19. Qxd6 {[%clk 0:01:38]}  Qxd6 {[%clk 0:01:12]} 20. Nxd6 {[%clk 0:01:39]}  Red8 {[%clk 0:01:12]} 21. Bc4 {[%clk 0:01:33]}  Be6 {[%clk 0:01:09]} 22. Bxe6 {[%clk 0:01:24]}  Rxd6 {[%clk 0:01:06]} 23. Bc4 {[%clk 0:01:17]}  Rxb2 {[%clk 0:01:05]} 24. Rab1 {[%clk 0:01:17]}  Rc2 {[%clk 0:00:59]} 25. Rb8+ {[%clk 0:01:15]}  Rd8 {[%clk 0:00:59]} 26. Rxd8+ {[%clk 0:01:01]}  Bxd8 {[%clk 0:01:00]} 27. Re3 {[%clk 0:00:41]}  Ba5 {[%clk 0:00:57]} 0-1


[Site "https://www.chess.com"]

[Event "Titled Tuesday Blitz November 14 Late 2023"]
[White "Roberson, Peter T"]
[Black "Hakobyan, Aram"]
[WhiteFideId "412384"]
[BlackFideId "13306677"]
[WhiteElo "2607"]
[BlackElo "3028"]
[Result "0-1"]
[Round "2"]
[TimeControl "180+1"]
[Date "2023.11.14"]
[WhiteClock "0:00:10"]
[BlackClock "0:00:05"]
[Board "9"]

1. e4 {[%clk 0:03:00]}  c5 {[%clk 0:02:59]} 2. Nf3 {[%clk 0:03:00]}  a6 {[%clk 0:02:59]} 3. c3 {[%clk 0:03:00]}  e6 {[%clk 0:02:57]} 4. d4 {[%clk 0:03:00]}  d5 {[%clk 0:02:57]} 5. e5 {[%clk 0:03:00]}  Bd7 {[%clk 0:02:57]} 6. Bd3 {[%clk 0:03:01]}  Bb5 {[%clk 0:02:57]} 7. Bxb5+ {[%clk 0:03:01]}  axb5 {[%clk 0:02:58]} 8. dxc5 {[%clk 0:03:01]}  Bxc5 {[%clk 0:02:58]} 9. O-O {[%clk 0:03:02]}  Nc6 {[%clk 0:02:56]} 10. Nbd2 {[%clk 0:03:02]}  Nge7 {[%clk 0:02:51]} 11. Nb3 {[%clk 0:03:01]}  Bb6 {[%clk 0:02:49]} 12. Bd2 {[%clk 0:02:58]}  Ng6 {[%clk 0:02:47]} 13. Qe2 {[%clk 0:02:58]}  O-O {[%clk 0:02:46]} 14. Rfe1 {[%clk 0:02:58]}  Qc7 {[%clk 0:02:27]} 15. Qxb5 {[%clk 0:02:52]}  Ncxe5 {[%clk 0:02:24]} 16. Nxe5 {[%clk 0:02:52]}  Nxe5 {[%clk 0:02:25]} 17. Rxe5 {[%clk 0:02:42]}  Bxf2+ {[%clk 0:02:25]} 18. Kxf2 {[%clk 0:02:42]}  Qxe5 {[%clk 0:02:25]} 19. Kg1 {[%clk 0:02:36]}  Qf5 {[%clk 0:02:07]} 20. Nd4 {[%clk 0:02:32]}  Qg6 {[%clk 0:02:06]} 21. a3 {[%clk 0:02:21]}  e5 {[%clk 0:01:54]} 22. Nf3 {[%clk 0:02:19]}  Qe6 {[%clk 0:01:54]} 23. Re1 {[%clk 0:02:18]}  f6 {[%clk 0:01:55]} 24. Nd4 {[%clk 0:02:13]}  Qf7 {[%clk 0:01:52]} 25. Nf5 {[%clk 0:02:10]}  Rfd8 {[%clk 0:01:47]} 26. h3 {[%clk 0:01:48]}  Qe6 {[%clk 0:01:34]} 27. Ne3 {[%clk 0:01:45]}  Rd7 {[%clk 0:01:29]} 28. Rd1 {[%clk 0:01:43]}  Rad8 {[%clk 0:01:27]} 29. Be1 {[%clk 0:01:42]}  d4 {[%clk 0:01:24]} 30. cxd4 {[%clk 0:01:40]}  exd4 {[%clk 0:01:25]} 31. Ng4 {[%clk 0:01:37]}  d3 {[%clk 0:01:19]} 32. Bc3 {[%clk 0:01:28]}  d2 {[%clk 0:01:12]} 33. Qf1 {[%clk 0:01:15]}  h5 {[%clk 0:00:58]} 34. Nf2 {[%clk 0:01:09]}  Qe3 {[%clk 0:00:54]} 35. Qc4+ {[%clk 0:00:50]}  Kh8 {[%clk 0:00:54]} 36. Qh4 {[%clk 0:00:50]}  Rd5 {[%clk 0:00:53]} 37. Kh1 {[%clk 0:00:43]}  Rf5 {[%clk 0:00:44]} 38. Ne4 {[%clk 0:00:37]}  Rf1+ {[%clk 0:00:20]} 39. Rxf1 {[%clk 0:00:32]}  d1=Q {[%clk 0:00:21]} 40. Rxd1 {[%clk 0:00:18]}  Rxd1+ {[%clk 0:00:22]} 41. Kh2 {[%clk 0:00:18]}  Qg1+ {[%clk 0:00:22]} 42. Kg3 {[%clk 0:00:19]}  Qe3+ {[%clk 0:00:21]} 43. Kh2 {[%clk 0:00:18]}  Qg1+ {[%clk 0:00:17]} 44. Kg3 {[%clk 0:00:18]}  Rd3+ {[%clk 0:00:18]} 45. Kf4 {[%clk 0:00:19]}  Qf1+ {[%clk 0:00:10]} 46. Qf2 {[%clk 0:00:19]}  Qc1+ {[%clk 0:00:10]} 47. Kf5 {[%clk 0:00:17]}  Qd1 {[%clk 0:00:08]} 48. Kg6 {[%clk 0:00:11]}  Qa4 {[%clk 0:00:05]} 49. Qf5 {[%clk 0:00:10]}  Qe8# {[%clk 0:00:05]} 0-1


[Site "https://www.chess.com"]

[Event "Titled Tuesday Blitz November 14 Late 2023"]
[White "Bortnyk, Olexandr"]
[Black "Martinez Reyes, Pedro Ramon"]
[WhiteFideId "14120828"]
[BlackFideId "3901807"]
[WhiteElo "3019"]
[BlackElo "2594"]
[Result "1-0"]
[Round "2"]
[TimeControl "180+1"]
[Date "2023.11.14"]
[WhiteClock "0:02:35"]
[BlackClock "0:01:26"]
[Board "10"]

1. e4 {[%clk 0:03:00]}  e6 {[%clk 0:03:00]} 2. d4 {[%clk 0:02:58]}  d5 {[%clk 0:03:00]} 3. Nc3 {[%clk 0:02:58]}  Nf6 {[%clk 0:03:00]} 4. Bg5 {[%clk 0:02:59]}  h6 {[%clk 0:02:59]} 5. Bxf6 {[%clk 0:02:59]}  Qxf6 {[%clk 0:03:00]} 6. exd5 {[%clk 0:02:59]}  Bb4 {[%clk 0:03:00]} 7. Bb5+ {[%clk 0:03:00]}  c6 {[%clk 0:02:57]} 8. dxc6 {[%clk 0:03:00]}  bxc6 {[%clk 0:02:57]} 9. Bd3 {[%clk 0:03:00]}  Qxd4 {[%clk 0:02:55]} 10. Ne2 {[%clk 0:02:58]}  Qf6 {[%clk 0:02:47]} 11. O-O {[%clk 0:02:59]}  O-O {[%clk 0:02:47]} 12. Ne4 {[%clk 0:02:58]}  Qe7 {[%clk 0:02:47]} 13. c3 {[%clk 0:02:55]}  Ba5 {[%clk 0:02:47]} 14. Nf4 {[%clk 0:02:55]}  Bc7 {[%clk 0:02:47]} 15. Nh5 {[%clk 0:02:49]}  Nd7 {[%clk 0:02:42]} 16. f4 {[%clk 0:02:38]}  Nc5 {[%clk 0:02:32]} 17. Nef6+ {[%clk 0:02:37]}  Kh8 {[%clk 0:02:24]} 18. Qg4 {[%clk 0:02:34]}  g6 {[%clk 0:02:10]} 19. Bxg6 {[%clk 0:02:33]}  fxg6 {[%clk 0:01:52]} 20. Qxg6 {[%clk 0:02:34]}  Rxf6 {[%clk 0:01:48]} 21. Nxf6 {[%clk 0:02:35]}  Qxf6 {[%clk 0:01:27]} 22. Qxf6+ {[%clk 0:02:35]}  Kh7 {[%clk 0:01:26]} 23. Qf7+ {[%clk 0:02:35]} 1-0


[Site "https://www.chess.com"]

[Event "Titled Tuesday Blitz November 14 Late 2023"]
[White "OPQRC"]
[Black "Maghsoodloo, Parham"]
[BlackFideId "12539929"]
[WhiteElo "2584"]
[BlackElo "2957"]
[Result "0-1"]
[Round "2"]
[TimeControl "180+1"]
[Date "2023.11.14"]
[WhiteClock "0:00:00"]
[BlackClock "0:00:03"]
[Board "14"]

1. e4 {[%clk 0:03:00]}  c5 {[%clk 0:02:56]} 2. Nf3 {[%clk 0:03:01]}  Nc6 {[%clk 0:02:55]} 3. b3 {[%clk 0:02:58]}  d6 {[%clk 0:02:48]} 4. Bb2 {[%clk 0:02:58]}  a6 {[%clk 0:01:56]} 5. d4 {[%clk 0:02:55]}  cxd4 {[%clk 0:01:56]} 6. Nxd4 {[%clk 0:02:54]}  Nf6 {[%clk 0:01:52]} 7. Nxc6 {[%clk 0:02:52]}  bxc6 {[%clk 0:01:52]} 8. Nc3 {[%clk 0:02:46]}  g6 {[%clk 0:01:49]} 9. e5 {[%clk 0:02:34]}  dxe5 {[%clk 0:01:48]} 10. Qf3 {[%clk 0:02:34]}  Qc7 {[%clk 0:01:46]} 11. h3 {[%clk 0:02:20]}  Bg7 {[%clk 0:01:42]} 12. O-O-O {[%clk 0:02:21]}  O-O {[%clk 0:01:42]} 13. Bc4 {[%clk 0:02:16]}  a5 {[%clk 0:01:40]} 14. Rhe1 {[%clk 0:02:06]}  h5 {[%clk 0:01:32]} 15. Ne4 {[%clk 0:01:52]}  a4 {[%clk 0:01:28]} 16. Nc5 {[%clk 0:01:46]}  axb3 {[%clk 0:01:23]} 17. Bxb3 {[%clk 0:01:47]}  Nd5 {[%clk 0:01:19]} 18. Kb1 {[%clk 0:01:31]}  Ra5 {[%clk 0:01:09]} 19. Nd3 {[%clk 0:01:26]}  e4 {[%clk 0:00:47]} 20. Qxe4 {[%clk 0:01:26]}  Nc3+ {[%clk 0:00:47]} 21. Bxc3 {[%clk 0:01:26]}  Bxc3 {[%clk 0:00:48]} 22. Qxg6+ {[%clk 0:01:23]}  Kh8 {[%clk 0:00:47]} 23. Qh6+ {[%clk 0:01:23]}  Kg8 {[%clk 0:00:47]} 24. Re3 {[%clk 0:01:15]}  Bg7 {[%clk 0:00:44]} 25. Qg6 {[%clk 0:01:09]}  Bf5 {[%clk 0:00:41]} 26. Qg3 {[%clk 0:00:58]}  Qxg3 {[%clk 0:00:41]} 27. Rxg3 {[%clk 0:00:58]}  h4 {[%clk 0:00:35]} 28. Rg5 {[%clk 0:00:50]}  e6 {[%clk 0:00:34]} 29. g4 {[%clk 0:00:39]}  hxg3 {[%clk 0:00:34]} 30. fxg3 {[%clk 0:00:40]}  Rfa8 {[%clk 0:00:34]} 31. g4 {[%clk 0:00:35]}  Be4 {[%clk 0:00:34]} 32. Rxa5 {[%clk 0:00:35]}  Rxa5 {[%clk 0:00:34]} 33. Nf4 {[%clk 0:00:30]}  c5 {[%clk 0:00:28]} 34. Nh5 {[%clk 0:00:20]}  Bd4 {[%clk 0:00:25]} 35. g5 {[%clk 0:00:18]}  Bf3 {[%clk 0:00:24]} 36. Nf6+ {[%clk 0:00:10]}  Bxf6 {[%clk 0:00:24]} 37. Rf1 {[%clk 0:00:11]}  Be2 {[%clk 0:00:06]} 38. Rxf6 {[%clk 0:00:11]}  c4 {[%clk 0:00:06]} 39. Rf2 {[%clk 0:00:05]}  cxb3 {[%clk 0:00:06]} 40. Rxe2 {[%clk 0:00:05]}  Rxa2 {[%clk 0:00:04]} 41. h4 {[%clk 0:00:00]}  Kg7 {[%clk 0:00:03]} 0-1


[Site "https://www.chess.com"]

[Event "Titled Tuesday Blitz November 14 Late 2023"]
[White "Gholami Orimi, Mahdi"]
[Black "Prithu Gupta"]
[WhiteFideId "12558486"]
[BlackFideId "46618546"]
[WhiteElo "2956"]
[BlackElo "2584"]
[Result "1-0"]
[Round "2"]
[TimeControl "180+1"]
[Date "2023.11.14"]
[WhiteClock "0:01:05"]
[BlackClock "0:00:05"]
[Board "15"]

1. d4 {[%clk 0:02:56]}  Nf6 {[%clk 0:02:59]} 2. c4 {[%clk 0:02:56]}  e6 {[%clk 0:02:59]} 3. Nc3 {[%clk 0:02:56]}  d5 {[%clk 0:02:59]} 4. cxd5 {[%clk 0:02:57]}  exd5 {[%clk 0:02:59]} 5. Bg5 {[%clk 0:02:57]}  Be7 {[%clk 0:02:59]} 6. e3 {[%clk 0:02:57]}  O-O {[%clk 0:02:59]} 7. Bd3 {[%clk 0:02:57]}  c6 {[%clk 0:02:59]} 8. Nge2 {[%clk 0:02:56]}  Nbd7 {[%clk 0:02:58]} 9. Qc2 {[%clk 0:02:56]}  Re8 {[%clk 0:02:58]} 10. O-O {[%clk 0:02:53]}  Nf8 {[%clk 0:02:58]} 11. f3 {[%clk 0:02:53]}  Ne6 {[%clk 0:02:50]} 12. Bh4 {[%clk 0:02:53]}  g6 {[%clk 0:02:47]} 13. Rad1 {[%clk 0:02:52]}  b5 {[%clk 0:02:33]} 14. Kh1 {[%clk 0:02:50]}  a5 {[%clk 0:02:29]} 15. Bf2 {[%clk 0:02:44]}  Bb7 {[%clk 0:02:21]} 16. e4 {[%clk 0:02:44]}  b4 {[%clk 0:02:15]} 17. Na4 {[%clk 0:02:43]}  Rc8 {[%clk 0:02:06]} 18. e5 {[%clk 0:02:42]}  Nd7 {[%clk 0:01:57]} 19. f4 {[%clk 0:02:39]}  c5 {[%clk 0:01:54]} 20. dxc5 {[%clk 0:02:24]}  Ndxc5 {[%clk 0:01:51]} 21. Nxc5 {[%clk 0:02:23]}  Nxc5 {[%clk 0:01:31]} 22. Bb5 {[%clk 0:02:22]}  Ne4 {[%clk 0:01:28]} 23. Qd3 {[%clk 0:02:21]}  Nxf2+ {[%clk 0:01:25]} 24. Rxf2 {[%clk 0:02:22]}  Qb6 {[%clk 0:00:57]} 25. Rff1 {[%clk 0:02:11]}  Red8 {[%clk 0:00:55]} 26. f5 {[%clk 0:02:11]}  d4 {[%clk 0:00:46]} 27. e6 {[%clk 0:02:03]}  Rc5 {[%clk 0:00:31]} 28. exf7+ {[%clk 0:02:01]}  Kf8 {[%clk 0:00:31]} 29. Be8 {[%clk 0:01:54]}  gxf5 {[%clk 0:00:19]} 30. Rxf5 {[%clk 0:01:45]}  Qg6 {[%clk 0:00:19]} 31. Ng3 {[%clk 0:01:45]}  Rdc8 {[%clk 0:00:11]} 32. Qxd4 {[%clk 0:01:41]}  Qg7 {[%clk 0:00:03]} 33. Qxg7+ {[%clk 0:01:22]}  Kxg7 {[%clk 0:00:04]} 34. Rxc5 {[%clk 0:01:21]}  Rxc5 {[%clk 0:00:05]} 35. h3 {[%clk 0:01:03]}  Rc2 {[%clk 0:00:05]} 36. Nh5+ {[%clk 0:01:03]}  Kf8 {[%clk 0:00:05]} 37. Nf4 {[%clk 0:01:04]}  Rf2 {[%clk 0:00:05]} 38. Ne6# {[%clk 0:01:05]} 1-0


[Site "https://www.chess.com"]